[Event "125-Jahre Werder Bremen 2024"]
[Site "Bremen"]
[Date "2024.03.05"]
[Round "4.7"]
[White "Meins, Gerlef"]
[Black "Breutigam, Martin"]
[Result "1/2-1/2"]
[ECO "B07"]
[WhiteElo "2390"]
[BlackElo "2359"]
[Annotator "TA"]
[PlyCount "84"]
[EventDate "2024.02.26"]
[EventType "swiss"]
[EventCountry "GER"]
[SourceTitle "playchess.com"]
[Source "ChessBase"]
[SourceQuality "1"]
[TimeControl "40/6000+30:1800+30"]

{[%evp 14,84,36,20,25,26,35,10,8,7,40,40,37,48,56,34,63,32,38,24,18,38,44,24,12,20,33,-14,-16,-13,-19,-100,-104,-96,-63,-60,-66,-63,-62,-58,-58,-58,-58,-58,-54,-59,-58,-85,-41,-41,-41,-41,-33,-49,-49,-49,-49,-49,-36,-36,-36,-87,-87,-87,-87,-80,-36,-36,-36,-80,0,-80,0]} 1. d4 {[%emt 0:00:03]} d6 {[%emt 0:02:11]} 2. Nf3 {[%emt 0:00:40]} g6 {[%emt 0:02:28]} 3. e4 {[%emt 0:00:47]} Nf6 {[%emt 0:00:15]} 4. Bd3 {[%emt 0:01:34]} Bg7 {[%emt 0:00:28]} 5. c3 {[%emt 0:00:51]} O-O {[%emt 0:01:51]} 6. O-O {[%emt 0:00:20]} Nc6 {[%emt 0:01:13]} 7. d5 {[%emt 0:12:32]} Nb8 {[%emt 0:00:29][%cal Bc6b8,Bb8a6,Ba6c5,Bc5d3][%mdl 32]} 8. c4 {[%emt 0:00:14]} Na6 {[%emt 0:03:45]} 9. Nc3 {[%emt 0:00:25]} Nc5 {[%emt 0:01:48]} 10. Re1 {[%emt 0:08:20]} Nxd3 {[%emt 0:04:11] The position is equal.} 11. Qxd3 {[%emt 0:00:13]} c6 {[%emt 0:00:13]} 12. h3 {[%emt 0:15:10]} cxd5 {[%emt 0:22:33]} 13. cxd5 {[%emt 0:07:11]} Bd7 {[%emt 0:05:17]} 14. Be3 {[%emt 0:18:11]} Qa5 {[%emt 0:05:05]} 15. b4 {[%emt 0:13:30]} Qxb4 {[%emt 0:10:02]} 16. Rab1 {[%emt 0:00:08]} Qa5 {[%emt 0:00:06]} 17. Rxb7 {[%emt 0:00:50]} Rfb8 {[%emt 0:00:24]} 18. Reb1 {[%emt 0:02:42]} Rxb7 {[%emt 0:00:25]} 19. Rxb7 {[%emt 0:00:04]} Bc8 {[%emt 0:01:08]} 20. Rb5 {[%emt 0:05:45]} (20. Rxe7 $2 {too greedy.} Bf8 21. e5 Bxe7 $19) (20. Rb3 $14 {is superior.}) 20... Ba6 $36 {[%emt 0:05:01][%mdl 2048] Black has the initiative.} 21. Rxa5 {[%emt 0:00:08]} Bxd3 {[%emt 0:00:04] This pair of bishops is nice.} 22. Nd4 {[%emt 0:10:37]} (22. e5 $11 Nd7 23. e6 Bxc3 24. Ra3) 22... Nxe4 $17 {[%emt 0:15:00]} 23. Nxe4 {[%emt 0:00:23]} Bxd4 {[%emt 0:01:01]} 24. Bxd4 {[%emt 0:03:32]} Bxe4 {[%emt 0:00:17][%mdl 4096] Endgame. KRB-KRB} 25. f3 {[%emt 0:00:41]} Bd3 {[%emt 0:00:29]} 26. Rxa7 {[%emt 0:01:51]} Rxa7 {[%emt 0:00:28]} 27. Bxa7 $15 {[%emt 0:00:04] KB-KB} Bc4 {[%emt 0:00:10][%csl LRa2,LRd5]} 28. a4 {[%emt 0:02:23]} Bxd5 {[%emt 0:01:06]} 29. Kf2 {[%emt 0:00:09]} Kf8 {[%emt 0:01:57]} 30. g4 {[%emt 0:00:50]} e5 {[%emt 0:18:11]} 31. g5 {[%emt 0:03:39]} Ke7 {[%emt 0:00:13]} 32. Bb8 {[%emt 0:01:24]} Ke6 {[%emt 0:01:32]} 33. Kg3 {[%emt 0:00:28]} Bb7 {[%emt 0:02:22]} 34. a5 {[%emt 0:00:23]} d5 {[%emt 0:00:46]} 35. f4 {[%emt 0:00:08]} exf4+ {[%emt 0:01:30]} 36. Kxf4 {[%emt 0:00:06]} d4 {[%emt 0:00:42]} 37. Be5 {[%emt 0:00:33]} ({White should try} 37. h4 $15) 37... Kd5 $17 {[%emt 0:00:19]} 38. Bf6 {[%emt 0:01:20] [#]} Kc4 $1 {[%emt 0:00:16]} 39. h4 {[%emt 0:00:33]} Kd5 {[%emt 0:01:34]} 40. Bg7 {[%emt 0:01:05]} Ba6 {[%emt 0:00:27]} (40... Kc5 $5) 41. Bf6 {[%emt 0:01:34]} Bb7 {[%emt 0:02:04]} 42. Bg7 {[%emt 0:01:25]} Ba6 {[%emt 0:00:22] Weighted Error Value: White=0.16 (very precise) /Black=0.10 (very precise) .  Mistake:       	White=3     	Black=1      Inaccurate:     	White=3     	Black=5      OK:         	White=9     	Black=8      Best:        	White=2     	Black=3      Strong:       	---       	Black=1} ({Black should play} 42... Kc5 $17 43. Kg3 Bd5) 1/2-1/2

[Event "125-Jahre Werder Bremen 2024"]
[Site "Bremen"]
[Date "2024.03.05"]
[Round "4.8"]
[White "Hejazipour, Mitra"]
[Black "Kopylov, Daniel"]
[Result "1/2-1/2"]
[ECO "E60"]
[WhiteElo "2356"]
[BlackElo "2346"]
[Annotator "TA"]
[PlyCount "103"]
[EventDate "2024.02.26"]
[EventType "swiss"]
[EventCountry "GER"]
[SourceTitle "playchess.com"]
[Source "ChessBase"]
[SourceQuality "1"]
[TimeControl "40/6000+30:1800+30"]

{[%evp 13,103,0,0,0,17,19,46,59,42,35,59,22,51,57,110,90,90,112,109,124,116,23,47,35,132,134,131,115,102,116,107,97,95,41,54,24,10,0,0,-16,0,0,0,0,0,0,0,0,0,-62,0,0,0,-8,0,0,0,0,0,0,0,0,0,0,0,-19,0,0,0,0,0,0,0,0,0,0,0,0,0,0,12,0,0,0,0,0,14,14,43,43,55,56]} 1. d4 {[%emt 0:00:07]} Nf6 {[%emt 0:00:28]} 2. c4 {[%emt 0:00:13]} g6 {[%emt 0:00:32]} 3. h4 {[%emt 0:00:32]} Bg7 {[%emt 0:01:33]} 4. Nc3 {[%emt 0:00:31]} c5 {[%emt 0:01:52]} 5. d5 {[%emt 0:00:29]} d6 {[%emt 0:00:19]} 6. e4 {[%emt 0:00:52] E60: King's Indian: Unusual lines and Fianchetto Variation without Nc3.} e6 {[%emt 0:01:38]} 7. Be2 {[%emt 0:01:30]} exd5 {[%emt 0:03:05]} 8. exd5 {[%emt 0:00:10]} O-O {[%emt 0:00:29]} 9. h5 {[%emt 0:04:29]} gxh5 {[%emt 0:04:22]} 10. Qc2 $146 {[%emt 0:04:41]} ({Predecessor:} 10. Bg5 Bf5 11. Rxh5 Re8 12. Qd2 Nbd7 13. Kf1 Ne5 14. Rh4 a6 15. Qf4 Bc2 16. Rh1 {½-½ Kueng,V (2238)-Chronopoulos,A (2251) Champion's League 2021/C2 email}) 10... Re8 {[%emt 0:23:12]} 11. Bg5 {[%emt 0:38:04]} h6 {[%emt 0:01:19]} 12. Bf4 {[%emt 0:06:14]} a6 {[%emt 0:01:44]} 13. Kf1 {[%emt 0:00:57]} Qe7 {[%emt 0:09:07]} (13... b5 $14) 14. a4 {[%emt 0:02:50]} ({Reject} 14. Bxh5 $6 Nxh5 15. Rxh5 Qf6 $14 (15... Bg4 16. Rh1 $11)) 14... Nbd7 {[%emt 0:03:34]} 15. Nf3 {[%emt 0:02:58]} Nf8 {[%emt 0:07:53]} 16. Bd3 {[%emt 0:04:59]} Bg4 {[%emt 0:04:16]} 17. Qd2 {[%emt 0:03:06]} (17. Nd2 $16) 17... Ng6 $11 {[%emt 0:11:02]} 18. Bxh6 {[%emt 0:01:10]} Bxf3 {[%emt 0:01:42]} (18... Bxh6 $14 19. Qxh6 Qf8 20. Qxf8+ Kxf8) 19. gxf3 $16 {[%emt 0:00:44]} Qe5 {[%emt 0:07:00]} 20. Ne2 {[%emt 0:09:13]} h4 {[%emt 0:06:26]} 21. Rg1 {[%emt 0:12:41]} Nh5 {[%emt 0:05:52]} 22. Bxg7 {[%emt 0:02:58]} (22. Bxg6 {simplifies} fxg6 23. Rxg6 Qxe2+ 24. Qxe2 Rxe2 25. Kxe2 Kh7 26. Rxg7+ Nxg7 27. Bd2) 22... Qxg7 {[%emt 0:04:18]} 23. f4 {[%emt 0:02:26]} (23. Rg4 $16) 23... Rxe2 $14 {[%emt 0:02:04]} 24. Bxe2 {[%emt 0:00:17]} Nhxf4 {[%emt 0:00:14]} 25. Qc3 {[%emt 0:01:40]} Re8 {[%emt 0:02:01]} 26. Qxg7+ {[%emt 0:01:44]} Kxg7 {[%emt 0:00:02]} 27. Bf3 {[%emt 0:01:15]} Kf6 {[%emt 0:00:53]} 28. b3 {[%emt 0:00:46]} Ne5 {[%emt 0:00:59]} 29. Re1 {[%emt 0:01:20]} Rh8 {[%emt 0:03:02]} 30. Be4 {[%emt 0:00:36]} h3 {[%emt 0:01:11]} 31. Re3 {[%emt 0:00:50]} ({White should try} 31. a5 $11) 31... Rh4 {[%emt 0:00:17]} (31... b5 $1 $15 32. cxb5 axb5 33. axb5 Rb8) 32. Rg8 $11 {[%emt 0:01:54]} Ng4 {[%emt 0:02:09]} (32... h2 $5 33. Bh1 $8 Nh5 $11) 33. Rg3 {[%emt 0:00:31]} Ne5 {[%emt 0:00:23]} 34. Bh1 {[%emt 0:00:31]} h2 {[%emt 0:00:46]} 35. Rd8 {[%emt 0:00:48]} Nh5 {[%emt 0:01:13]} 36. Rxd6+ {[%emt 0:01:18]} Ke7 {[%emt 0:00:23]} 37. Rb6 {[%emt 0:00:07]} Nxg3+ {[%emt 0:00:42]} 38. fxg3 {[%emt 0:00:01]} Rd4 $1 {[%emt 0:00:11]} 39. Rxb7+ {[%emt 0:00:37]} Kf8 {[%emt 0:00:55]} 40. Kg2 {[%emt 0:00:42]} Ng4 {[%emt 0:00:47]} 41. Kf3 $1 {[%emt 0:09:55]} Ne5+ {[%emt 0:10:35]} 42. Kg2 {[%emt 0:04:05]} Rd2+ {[%emt 0:00:58]} 43. Kh3 {[%emt 0:00:03]} f5 {[%emt 0:00:19]} 44. b4 {[%emt 0:02:04]} cxb4 {[%emt 0:10:02]} 45. Rxb4 {[%emt 0:01:37]} Ng4 {[%emt 0:04:27]} 46. Rb1 {[%emt 0:00:51]} Rc2 {[%emt 0:00:16]} 47. d6 {[%emt 0:02:21]} Ke8 {[%emt 0:01:59]} 48. Rf1 {[%emt 0:04:11]} Nf2+ {[%emt 0:03:34]} 49. Kxh2 {[%emt 0:04:35]} Ne4+ {[%emt 0:00:06]} 50. Kh3 {[%emt 0:00:47]} Nxd6 {[%emt 0:00:03]} 51. Bd5 {[%emt 0:00:31]} a5 {[%emt 0:00:54]} 52. Kh4 {[%emt 0:03:19]} 1/2-1/2

[Event "125-Jahre Werder Bremen 2024"]
[Site "Bremen"]
[Date "2024.03.05"]
[Round "4.9"]
[White "Pruijssers, Roeland"]
[Black "Reuker, Jari"]
[Result "0-1"]
[ECO "C02"]
[WhiteElo "2537"]
[BlackElo "2383"]
[Annotator "TA"]
[PlyCount "56"]
[EventDate "2024.02.26"]
[EventType "swiss"]
[EventCountry "GER"]
[SourceTitle "playchess.com"]
[Source "ChessBase"]
[SourceQuality "1"]
[TimeControl "40/6000+30:1800+30"]

{[%evp 12,56,4,0,0,0,0,-41,-45,-66,-66,-69,-67,-72,-68,-67,-20,-52,-47,-50,-52,-63,-64,-58,-46,-167,-172,-170,-166,-170,-167,-161,-159,-152,-159,-169,-168,-162,-163,-356,-351,-352,-352,-347,-346,-318,-277]} 1. e4 {[%emt 0:00:05]} e6 {[%emt 0:00:06]} 2. d4 {[%emt 0:03:12]} d5 {[%emt 0:00:12]} 3. e5 {[%emt 0:02:18]} c5 {[%emt 0:00:29]} 4. c3 {[%emt 0:00:07]} Nc6 {[%emt 0:00:08]} 5. Nf3 {[%emt 0:00:12]} Qb6 {[%emt 0:00:06]} 6. Na3 {[%emt 0:13:36]} cxd4 {[%emt 0:00:38]} 7. cxd4 {[%emt 0:01:17]} Bb4+ {[%emt 0:00:11]} 8. Bd2 {[%emt 0:00:11]} a6 {[%emt 0:00:14] Prevents Nb5} 9. Bd3 {[%emt 0:11:14]} Nxd4 {[%emt 0:19:42] Black is slightly better.} 10. Nxd4 {[%emt 0:05:08]} Qxd4 {[%emt 0:00:58]} 11. Qa4+ {[%emt 0:06:27]} Bd7 {[%emt 0:00:28]} 12. Qxb4 {[%emt 0:00:08]} Qxd3 {[%emt 0:00:13]} 13. Rc1 {[%emt 0:20:03]} Bc6 {[%emt 0:37:29]} (13... Rc8 $15 14. Rc3 Rxc3 15. Bxc3 b5) 14. Rc3 {[%emt 0:18:45]} (14. Rxc6 {is interesting.} bxc6 15. Qb7 Rd8 16. Bb4) 14... Qe4+ {[%emt 0:00:31]} 15. Qxe4 {[%emt 0:00:07]} dxe4 {[%emt 0:00:04]} 16. Nc4 {[%emt 0:00:05]} Ne7 {[%emt 0:04:41]} 17. Nd6+ {[%emt 0:03:47]} Kf8 {[%emt 0:00:31]} 18. Nxb7 {[%emt 0:11:40] White does not recover from this.} e3 $1 $19 {[%emt 0:06:48]} (18... Bxb7 19. Rc7 Bd5 20. Bb4 $17) 19. fxe3 {[%emt 0:03:32]} Bxb7 {[%emt 0:00:35]} ({Much less strong is} 19... Bxg2 20. Rg1 Bxb7 21. Rc7 $15) 20. Rc7 {[%emt 0:00:06]} Bxg2 {[%emt 0:00:34]} 21. Rg1 {[%emt 0:00:02]} Nd5 $1 {[%emt 0:00:55]} 22. Rc4 {[%emt 0:00:02] [#]} Bf3 {[%emt 0:03:19]} 23. Rg3 {[%emt 0:02:57]} Nb6 {[%emt 0:07:54]} 24. Rb4 {[%emt 0:00:07] [#]} Nd7 $1 {[%emt 0:01:08] Threatens to win with ...Bc6.} 25. Rd4 $2 {[%emt 0:02:20]} (25. Rxf3 Nxe5 26. Rg3) 25... Bc6 {[%emt 0:03:09]} 26. Bb4+ {[%emt 0:00:45]} Kg8 {[%emt 0:02:36]} 27. Bd6 {[%emt 0:01:00]} h5 {[%emt 0:02:07]} 28. e4 {[%emt 0:00:13]} Nf8 {[%emt 0:03:30] Weighted Error Value: White=0.31/Black=0.03 (flawless) .  Mistake:       	White=2     	Black=1      Inaccurate:     	White=2     	---        OK:         	White=10    	Black=11     Best:        	White=4     	Black=3      Strong:       	---       	Black=3} 0-1

[Event "125-Jahre Werder Bremen 2024"]
[Site "Bremen"]
[Date "2024.03.05"]
[Round "4.10"]
[White "Krastev, Alexander"]
[Black "Colbow, Collin"]
[Result "1/2-1/2"]
[ECO "B52"]
[WhiteElo "2457"]
[BlackElo "2373"]
[Annotator "RC"]
[PlyCount "48"]
[EventDate "2024.02.26"]
[EventType "swiss"]
[EventCountry "GER"]
[SourceTitle "playchess.com"]
[Source "ChessBase"]
[SourceQuality "1"]
[TimeControl "40/6000+30:1800+30"]

1. e4 {[%emt 0:00:06]} c5 {[%emt 0:00:10]} 2. Nf3 {[%emt 0:00:05]} d6 {[%emt 0:00:09]} 3. Bb5+ {[%emt 0:00:06]} Bd7 {[%emt 0:00:12]} 4. Bxd7+ {[%emt 0:00:08]} Qxd7 {[%emt 0:00:09]} 5. c4 {[%emt 0:00:05]} Nc6 {[%emt 0:03:58]} 6. d4 {[%emt 0:01:02]} cxd4 {[%emt 0:00:11]} 7. Nxd4 {[%emt 0:00:05]} Nf6 {[%emt 0:00:24]} 8. Nc3 {[%emt 0:00:12]} g6 {[%emt 0:00:08]} 9. f3 {[%emt 0:00:11]} Bg7 {[%emt 0:01:20]} 10. Be3 {[%emt 0:00:31]} O-O {[%emt 0:00:10]} 11. O-O {[%emt 0:00:19]} e6 {[%emt 0:00:11]} 12. Qd2 {[%emt 0:07:05]} Rfd8 {[%emt 0:03:15]} 13. Rfd1 {[%emt 0:04:59]} d5 {[%emt 0:00:13]} 14. Qf2 {[%emt 0:41:29]} Qe7 {[%emt 0:34:13]} 15. cxd5 {[%emt 0:22:38]} exd5 {[%emt 0:02:26]} 16. Nxc6 {[%emt 0:00:12]} bxc6 {[%emt 0:00:06]} 17. exd5 {[%emt 0:00:13]} Nxd5 {[%emt 0:00:34]} 18. Nxd5 {[%emt 0:16:49]} Rxd5 {[%emt 0:08:30]} 19. Rxd5 {[%emt 0:00:35]} cxd5 {[%emt 0:00:01]} 20. Bd4 {[%emt 0:00:42]} Bxd4 {[%emt 0:03:28]} 21. Qxd4 {[%emt 0:00:06]} Rc8 {[%emt 0:00:53]} 22. Qf2 {[%emt 0:00:16]} Qg5 {[%emt 0:15:56]} 23. Rd1 {[%emt 0:03:19]} Rc1 {[%emt 0:02:28]} 24. Qe2 {[%emt 0:00:18]} d4 {[%emt 0:15:57]} 1/2-1/2

[Event "125-Jahre Werder Bremen 2024"]
[Site "Bremen"]
[Date "2024.03.05"]
[Round "4.11"]
[White "Kopylov, Michael"]
[Black "Knaak, Rainer"]
[Result "1/2-1/2"]
[ECO "E04"]
[WhiteElo "2352"]
[BlackElo "2450"]
[Annotator "TA"]
[PlyCount "41"]
[EventDate "2024.02.26"]
[EventType "swiss"]
[EventCountry "GER"]
[SourceTitle "playchess.com"]
[Source "ChessBase"]
[SourceQuality "1"]
[TimeControl "40/6000+30:1800+30"]

{[%evp 12,41,19,19,0,4,25,16,25,10,29,29,32,0,-6,-8,0,0,0,0,0,-60,0,0,0,0,0,0,41,0,0,-59]} 1. d4 {[%emt 0:00:04]} d5 {[%emt 0:00:10]} 2. c4 {[%emt 0:00:20]} e6 {[%emt 0:00:06]} 3. Nf3 {[%emt 0:00:25]} Nf6 {[%emt 0:00:40]} 4. g3 {[%emt 0:00:15]} dxc4 {[%emt 0:00:41]} 5. Bg2 {[%emt 0:00:14]} Bb4+ {[%emt 0:00:38]} 6. Bd2 {[%emt 0:00:15]} a5 {[%emt 0:00:09]} 7. O-O {[%emt 0:03:44][%mdl 1024] White has compensation.} O-O {[%emt 0:01:18]} 8. Bg5 $1 {[%emt 0:04:41]} c6 {[%emt 1:40:48]} 9. Ne5 {[%emt 0:05:26]} b5 {[%emt 0:00:00]} 10. a4 {[%emt 0:06:49] [#] Black must now prevent axb5.} Ra6 {[%emt 0:00:00]} 11. Nc3 {[%emt 0:00:05]} Rb6 {[%emt 0:00:00]} 12. e4 {[%emt 0:01:51]} h6 {[%emt 0:00:00]} 13. Be3 {[%emt 0:00:59]} Nbd7 {[%emt 0:00:00]} 14. f4 {[%emt 0:01:59]} Nxe5 {[%emt 0:00:00]} 15. fxe5 {[%emt 0:03:05]} Nd7 {[%emt 0:00:00]} 16. Qh5 {[%emt 0:04:33]} (16. axb5 $11 cxb5 17. Qh5) 16... Be7 {[%emt 0:00:00]} (16... c5 $1 $15 17. d5 Bxc3 18. bxc3 b4 19. cxb4 cxb4 (19... Rxb4 20. dxe6 fxe6 21. Bxh6 $11) (19... axb4 $2 20. Bh3 $19)) 17. axb5 $11 {[%emt 0:21:44]} cxb5 {[%emt 0:00:00]} 18. h4 {[%emt 0:00:05][%cal Og1h2]} b4 {[%emt 0:00:00]} 19. Na4 {[%emt 0:00:52] [#] Bxh6 is the strong threat.} Rb5 {[%emt 0:00:00]} 20. Rf4 {[%emt 0:05:37] And now Bf1 would win.} f6 $1 {[%emt 0:00:00][%cal Rf6e5]} 21. Bf1 {[%emt 0:20:44] A rather calm draw.   Weighted Error Value: White=0.12 (very precise) /Black=0.10 (very precise) .  Mistake:       	White=2     	Black=1      Inaccurate:     	White=2     	Black=1      OK:         	White=6     	Black=6      Best:        	White=1     	---        Strong:       	White=1     	Black=1} (21. Bh3 $11 Kh8 (21... fxe5 22. Bxe6+ Kh8 23. Rxf8+ Bxf8 24. Bxc4 $16) 22. Bxe6 Nxe5 23. Bxc8 Qxc8 24. Rf5 (24. dxe5 Qc7 $16)) 1/2-1/2

[Event "125-Jahre Werder Bremen 2024"]
[Site "Bremen"]
[Date "2024.03.05"]
[Round "4.12"]
[White "Radeva, Viktoria"]
[Black "Guichard, Pauline"]
[Result "1/2-1/2"]
[ECO "C24"]
[WhiteElo "2325"]
[BlackElo "2385"]
[Annotator "TA"]
[PlyCount "79"]
[EventDate "2024.02.26"]
[EventType "swiss"]
[EventCountry "GER"]
[SourceTitle "playchess.com"]
[Source "ChessBase"]
[SourceQuality "1"]
[TimeControl "40/6000+30:1800+30"]

{[%evp 12,79,43,52,60,53,72,27,24,16,12,10,17,17,17,29,25,16,67,32,32,25,45,36,146,62,69,79,73,62,60,55,54,32,35,34,41,38,70,52,65,58,64,64,64,64,64,57,57,44,57,57,58,57,58,58,58,58,58,58,58,58,58,58,58,0,58,0,58,0]} 1. e4 {[%emt 0:00:03]} e5 {[%emt 0:00:06]} 2. Nf3 {[%emt 0:00:12]} Nc6 {[%emt 0:00:08]} 3. Bc4 {[%emt 0:00:04]} Nf6 {[%emt 0:00:09]} 4. d3 {[%emt 0:00:05][%cal Bd2d3,Bd3d4][%mdl 32]} d5 {[%emt 0:00:21]} 5. exd5 {[%emt 0:00:18]} Nxd5 {[%emt 0:00:05]} 6. O-O {[%emt 0:01:06]} Be7 {[%emt 0:00:23]} 7. Re1 {[%emt 0:01:12]} f6 {[%emt 0:00:19]} 8. d4 {[%emt 0:01:49][%cal Rd4e5]} Nb6 {[%emt 0:00:24][%csl LRc4,LRd4]} 9. Bb5 {[%emt 0:00:39]} O-O {[%emt 0:00:48] White has an edge.} 10. Bxc6 {[%emt 0:00:43]} bxc6 {[%emt 0:00:11]} 11. dxe5 {[%emt 0:00:50]} Qxd1 {[%emt 0:01:08]} 12. Rxd1 {[%emt 0:00:04]} Bg4 {[%emt 0:00:12]} 13. Nbd2 {[%emt 0:11:57]} fxe5 {[%emt 0:24:04]} 14. Re1 {[%emt 0:00:49]} Bf6 {[%emt 0:06:05]} (14... Rae8 $11) 15. Nxe5 {[%emt 0:09:16]} Rae8 {[%emt 0:06:08]} 16. f4 {[%emt 0:09:43]} Nd5 {[%emt 0:17:46]} 17. Ndc4 {[%emt 0:10:37]} Nb4 {[%emt 0:15:08]} ({Black should try} 17... Be6 $14) 18. Ne3 {[%emt 0:25:36] A dynamic duo of knights.} (18. Bd2 $16 Bxe5 19. Nxe5 (19. Bxb4 Bd4+ 20. Kh1 c5 $11) (19. Rxe5 Nxc2 20. Rc1 Nd4 $16) 19... Nxc2 20. Nxg4 Nxa1 21. Rxa1) 18... Bc8 {[%emt 0:00:53][%cal Og7g5]} 19. Bd2 {[%emt 0:03:04]} Nd5 {[%emt 0:00:15]} 20. Nxd5 {[%emt 0:02:10]} ({Much weaker is} 20. Nxc6 Nxf4 21. Bb4 Rf7 $17) 20... cxd5 {[%emt 0:00:18]} 21. Bb4 {[%emt 0:00:08]} Bxe5 $1 {[%emt 0:01:00]} 22. Rxe5 {[%emt 0:01:43]} Rxe5 {[%emt 0:00:10]} 23. fxe5 $14 {[%emt 0:00:03][%mdl 4096] Endgame. KRB-KRB} Rf4 {[%emt 0:00:26]} 24. c3 {[%emt 0:01:39]} Bf5 {[%emt 0:08:59]} 25. Rf1 {[%emt 0:10:11]} Rxf1+ {[%emt 0:04:36]} 26. Kxf1 {[%emt 0:00:05] KB-KB} Bb1 {[%emt 0:00:18]} 27. a3 {[%emt 0:00:14]} Kf7 {[%emt 0:01:23]} 28. Bc5 {[%emt 0:00:13]} a5 {[%emt 0:01:07]} 29. Kf2 {[%emt 0:00:59]} Ke6 {[%emt 0:01:29]} 30. Ke3 {[%emt 0:03:14]} a4 {[%emt 0:05:54]} 31. Kd4 {[%emt 0:08:01]} Ba2 {[%emt 0:00:16]} 32. Bf8 {[%emt 0:00:38]} g6 {[%emt 0:00:11]} 33. Bg7 {[%emt 0:01:14]} Bb3 {[%emt 0:01:17]} 34. Kc5 {[%emt 0:00:18]} Kd7 $1 {[%emt 0:00:05]} 35. Bh6 {[%emt 0:03:35]} Ke6 {[%emt 0:00:30]} 36. Bf4 {[%emt 0:01:01]} Kd7 {[%emt 0:00:10]} 37. Kb5 {[%emt 0:00:40]} Bc2 {[%emt 0:01:59]} 38. Kc5 {[%emt 0:00:27]} Bb3 {[%emt 0:00:06]} 39. Kb5 {[%emt 0:00:05]} Bc2 $1 {[%emt 0:00:06]} 40. Kc5 {[%emt 0:00:04] Weighted Error Value: White=0.12 (very precise) /Black=0.10 (very precise) .  Mistake:       	White=2     	Black=2      Inaccurate:     	White=2     	Black=1      OK:         	White=13    	Black=13     Best:        	---       	Black=1      Strong:       	---       	Black=3} (40. Kb4 $14) 1/2-1/2